bitfinex/quotes_SOLUSD_20260108
["timestamp","ask_amount","ask_price","bid_price","bid_amount"]
[1767855033273,10.95721592,135.31,135.29,1e-08]
[1767855034063,0.0744603,135.29,135.27,1e-08]
[1767855034263,4.07770101,135.28,135.26,0.2]
[1767855034468,3.49747915,135.28,135.26,0.2]
[1767855034770,0.59054298,135.29,135.26,0.86836986]
[1767855035066,0.87486612,135.3,135.26,0.86836986]
[1767855035257,4.37234527,135.3,135.26,0.86836986]
[1767855035854,7.39173141,135.29,135.26,0.86836986]
[1767855036067,7.46103141,135.29,135.26,0.86836986]
[1767855036569,0.8696537,135.28,135.25,0.2]
[1767855036761,0.0744603,135.27,135.25,0.2]
[1767855036963,4.37234527,135.28,135.25,0.2]
[1767855037272,0.28432314,135.28,135.25,0.86836986]
[1767855037450,24.97975354,135.29,135.25,0.86836986]
[1767855037773,21.48227439,135.29,135.25,0.86836986]
[1767855038073,24.97975354,135.29,135.25,0.86836986]
[1767855039178,3.49747915,135.28,135.25,0.86836986]
[1767855040271,10.98860869,135.28,135.25,0.86836986]
[1767855040478,7.49112954,135.28,135.25,0.86836986]
[1767855040657,10.98860869,135.28,135.25,0.86836986]
[1767855040856,7.49112954,135.28,135.25,0.86836986]
[1767855041173,10.98860869,135.28,135.25,0.2]
[1767855041376,10.98860869,135.28,135.25,0.86836986]
[1767855042274,10.98860869,135.28,135.25,1e-08]
[1767855042275,4.0831067,135.27,135.25,1e-08]
[1767855042466,4.36742984,135.27,135.25,1e-08]
[1767855043447,0.86995069,135.27,135.25,1e-08]
[1767855043653,3.49747915,135.26,135.25,1e-08]
[1767855044047,7.39316871,135.26,135.25,1e-08]
[1767855044246,10.89064786,135.26,135.25,1e-08]
[1767855044473,29.37356964,135.26,135.22,0.2]
[1767855044658,3.49747915,135.24,135.22,0.2]
[1767855045268,4.17234526,135.25,135.22,0.2]
[1767855045881,0.67486611,135.25,135.22,0.2]
[1767855046064,17.67234526,135.25,135.22,0.2]
[1767855046387,7.39426205,135.24,135.22,0.2]
[1767855046780,18.48064954,135.28,135.23,0.66836986]
[1767855047076,0.14216157,135.26,135.23,0.66836986]
[1767855047272,3.88802212,135.25,135.22,0.2]
[1767855047974,3.49747915,135.24,135.21,0.86836986]
[1767855048576,7.39480884,135.23,135.21,0.86836986]
[1767855049366,7.4935138,135.24,135.21,0.86836986]
[1767855049685,7.3945138,135.24,135.21,0.86836986]
[1767855050778,10.8911532,135.26,135.22,0.66836986]
[1767855051170,7.49267405,135.26,135.22,0.66836986]
[1767855051484,10.9901532,135.26,135.22,0.66836986]
[1767855052563,3.49747915,135.25,135.22,0.66836986]
[1767855052768,10.89128455,135.25,135.22,0.66836986]
[1767855054196,0.10188627,135.24,135.21,0.2]
[1767855054362,0.08677013,135.19,135.17,1e-08]
[1767855054559,3.58424928,135.18,135.15,1e-08]
[1767855054783,0.08677013,135.18,135.15,1e-08]
[1767855055983,11.18120468,135.15,135.12,0.66836986]
[1767855056289,3.49747915,135.16,135.12,0.66836986]
[1767855056466,0.28432314,135.17,135.12,0.66836986]
[1767855056667,0.37109327,135.17,135.12,0.66836986]
[1767855056872,7.76928732,135.17,135.12,0.66836986]
[1767855057168,0.08677013,135.16,135.11,0.66836986]
[1767855057377,0.08677013,135.16,135.09,0.66836986]
[1767855057378,0.28432314,135.14,135.09,0.66836986]
[1767855057558,0.28432314,135.14,135.1,0.66836986]
[1767855057961,3.78180229,135.14,135.1,0.66836986]
[1767855058505,7.68431399,135.14,135.1,0.66836986]
[1767855059359,7.77108412,135.14,135.1,0.66836986]
[1767855059570,11.26856327,135.14,135.1,0.66836986]
[1767855059868,3.49747915,135.13,135.1,0.66836986]
[1767855060063,7.77108412,135.14,135.1,0.66836986]
[1767855060300,6.6801107,135.17,135.13,0.66836986]
[1767855060301,11.18032256,135.17,135.13,0.66836986]
[1767855060602,11.18032256,135.17,135.12,3.49747915]
[1767855060603,3.49747915,135.16,135.12,0.66836986]
[1767855060769,0.14216157,135.17,135.13,0.66836986]
[1767855060972,13.58677013,135.2,135.15,0.66836986]
[1767855061171,0.28432314,135.18,135.15,0.66836986]
[1767855061781,20.98353154,135.2,135.15,0.66836986]
[1767855062102,24.39424056,135.2,135.16,0.72447925]
[1767855062261,3.49747915,135.2,135.16,0.72447925]
[1767855062462,20.89480884,135.23,135.18,0.72447925]
[1767855062662,7.39480884,135.23,135.2,0.72447925]
[1767855063388,7.39442764,135.24,135.2,0.72447925]
[1767855063575,7.39442764,135.24,135.17,0.67950096]
[1767855063576,0.08677013,135.23,135.17,0.67950096]
[1767855063776,3.49747915,135.22,135.18,0.67950096]
[1767855063988,3.63964072,135.23,135.18,0.67950096]
[1767855064283,0.14216157,135.22,135.18,0.67950096]
[1767855064672,16.99747915,135.25,135.2,4.17698011]
[1767855064872,3.49747915,135.25,135.21,0.67950096]
[1767855065075,7.39371534,135.25,135.21,0.67950096]
[1767855065290,7.39325931,135.26,135.22,0.67950096]
[1767855065585,24.39009744,135.28,135.23,0.67950096]
[1767855065793,7.39261829,135.28,135.24,0.67950096]
[1767855066792,7.3915293,135.29,135.25,0.67950096]
[1767855066969,10.88900845,135.29,135.25,0.67950096]
[1767855067392,7.3915293,135.29,135.25,0.67950096]
[1767855067573,10.88900845,135.29,135.25,0.67950096]
[1767855067890,7.3915293,135.29,135.25,0.67950096]
[1767855068070,10.88900845,135.29,135.25,0.67950096]
[1767855068673,18.70560646,135.31,135.26,0.67950096]
[1767855068674,3.49747915,135.31,135.26,0.67950096]
[1767855068908,10.88808373,135.31,135.27,0.67950096]
[1767855069188,29.36215119,135.32,135.28,0.67950096]
[1767855069395,0.28432314,135.31,135.28,0.67950096]
[1767855069591,3.49747915,135.31,135.28,0.67950096]
[1767855069973,10.88750766,135.32,135.28,0.67950096]
[1767855070174,7.39002851,135.32,135.28,0.67950096]
[1767855070474,25.86475508,135.32,135.28,0.67950096]
[1767855070675,13.58677013,135.33,135.28,0.67950096]
[1767855070676,7.38950137,135.33,135.29,0.67950096]
[1767855070881,7.38898106,135.34,135.3,0.67950096]
[1767855071096,10.8858882,135.35,135.31,0.67950096]
[1767855071891,7.38784704,135.36,135.31,0.67950096]
[1767855072189,10.88481324,135.37,135.33,0.67950096]
[1767855072697,7.38733409,135.37,135.33,0.67950096]
[1767855072895,10.88481324,135.37,135.33,0.67950096]
[1767855073071,3.49747915,135.36,135.33,0.67950096]
[1767855073778,3.49747915,135.35,135.31,0.67950096]
[1767855073975,7.38661545,135.38,135.33,0.67950096]
[1767855074177,3.49747915,135.37,135.33,0.67950096]
[1767855074490,10.8840946,135.38,135.33,0.67950096]
[1767855074666,7.38661545,135.38,135.34,0.67950096]
[1767855074871,10.98356948,135.39,135.35,0.67950096]
[1767855075072,7.48609033,135.39,135.35,0.59218048]
[1767855075383,0.1,135.39,135.35,0.59218048]
[1767855075780,7.48612768,135.39,135.35,0.59218048]
[1767855075990,10.98360683,135.39,135.35,0.59218048]
[1767855076687,7.48612768,135.39,135.35,0.59218048]
[1767855076884,10.98360683,135.39,135.35,0.59218048]
[1767855077577,7.38443361,135.42,135.39,0.67950096]
[1767855077784,7.38443361,135.42,135.39,0.65240767]
[1767855077996,10.88191276,135.42,135.39,0.62496745]
[1767855078199,7.38443361,135.42,135.39,0.62496745]
[1767855078403,3.49747915,135.41,135.39,0.59773923]
[1767855078586,7.38443361,135.42,135.39,0.59773923]
[1767855078927,7.38443361,135.42,135.39,0.57063508]
[1767855079486,3.49747915,135.44,135.39,0.57063508]
[1767855079686,3.49747915,135.43,135.39,0.57063508]
[1767855080526,3.49747915,135.44,135.39,0.57063508]
[1767855080813,0.38011692,135.44,135.39,0.57063508]
[1767855081106,3.87759607,135.44,135.4,0.67950096]
[1767855081309,10.88027723,135.45,135.4,0.67950096]
[1767855081801,10.97927723,135.45,135.4,0.67950096]
[1767855082106,10.98317867,135.43,135.38,0.67950096]
[1767855082491,9.72232273,135.43,135.38,0.67950096]
[1767855082801,9.62051156,135.43,135.39,0.67950096]
[1767855082986,7.38388835,135.43,135.39,0.67950096]
[1767855083822,2.61674013,135.42,135.37,2.91612417]
[1767855084025,2.61674013,135.42,135.37,0.67950096]
[1767855084386,7.38497895,135.41,135.37,0.67950096]
[1767855084697,7.38497895,135.41,135.38,0.67950096]
[1767855085195,7.7647575,135.42,135.38,0.67950096]
[1767855086620,0.38295649,135.44,135.39,2.91612417]
[1767855086908,0.38295649,135.44,135.4,0.67950096]
[1767855087410,0.099,135.45,135.4,2.91612417]
[1767855087588,0.099,135.45,135.41,0.67950096]
[1767855088298,0.099,135.46,135.42,0.67950096]
[1767855088498,2.33562321,135.46,135.42,0.67950096]
[1767855088700,2.33843438,135.44,135.4,0.67950096]
[1767855089303,2.61395707,135.43,135.39,0.67950096]
[1767855090013,0.37733386,135.43,135.39,0.67950096]
[1767855090214,0.37733386,135.43,135.39,8.06550706]
[1767855090420,10.00337517,135.44,135.39,8.06550706]
[1767855091115,10.00337517,135.44,135.4,0.67950096]
[1767855091298,9.62041868,135.44,135.4,0.67950096]
[1767855093315,9.62041868,135.44,135.4,0.65203725]
[1767855093947,2.23662321,135.42,135.37,7.38713652]
[1767855094112,2.23662321,135.42,135.35,13.48]
[1767855094113,25.84215341,135.44,135.38,2.23662321]
[1767855094318,25.84215341,135.44,135.37,9.62355359]
[1767855094319,2.23662321,135.43,135.37,9.62355359]
[1767855094512,7.38405671,135.43,135.38,2.23662321]
[1767855095020,9.62020093,135.44,135.38,2.23662321]
[1767855095192,7.38296852,135.45,135.39,2.23662321]
[1767855095395,9.61959173,135.45,135.4,0.69545024]
[1767855095795,9.61959173,135.45,135.41,0.69545024]
[1767855096014,7.38296852,135.45,135.41,0.66781687]
[1767855096421,7.38296852,135.45,135.41,0.64089504]
[1767855096615,9.61959173,135.45,135.41,0.64089504]
[1767855096927,9.61959173,135.45,135.41,0.61401298]
[1767855097521,7.38296852,135.45,135.41,0.61401298]
[1767855098210,20.86242383,135.46,135.41,7.38494444]
[1767855098704,23.09904704,135.46,135.42,0.69545024]
[1767855098904,9.61904704,135.46,135.42,0.66844845]
[1767855099106,9.61904704,135.46,135.42,0.64150742]
[1767855099621,9.61904704,135.46,135.42,0.61402205]
[1767855099815,9.61845,135.47,135.42,0.61402205]
[1767855100026,9.61789597,135.48,135.42,2.23662321]
[1767855100204,7.38127276,135.48,135.43,2.23662321]
[1767855100526,9.61789597,135.48,135.43,9.62046444]
[1767855100729,21.43405369,135.49,135.43,7.38384123]
[1767855100907,0.099,135.48,135.42,7.38436043]
[1767855101107,2.23662321,135.47,135.42,7.38436043]
[1767855101717,2.23662321,135.47,135.43,0.69545024]
[1767855102319,9.61850529,135.47,135.43,0.69545024]
[1767855103021,7.38188208,135.47,135.43,0.69545024]
[1767855103215,9.61850529,135.47,135.43,0.69545024]
[1767855103626,7.38188208,135.47,135.43,0.69545024]
[1767855103942,9.61850529,135.47,135.43,0.69545024]
[1767855105341,7.38116327,135.48,135.43,0.69545024]
[1767855105648,9.61778648,135.48,135.44,0.69545024]
[1767855105935,0.38432314,135.5,135.45,0.69545024]
[1767855105936,2.33662321,135.5,135.45,0.69545024]
[1767855106132,9.71680562,135.5,135.45,0.69545024]
[1767855107219,0.1,135.5,135.45,0.69545024]
[1767855107413,0.1,135.5,135.47,0.69545024]
[1767855107609,0.1,135.5,135.47,2.904957]
[1767855107827,0.1,135.5,135.47,2.23662321]
[1767855108027,3.00443446,135.53,135.47,2.23662321]
[1767855108250,0.13126494,135.52,135.45,28.07631715]
[1767855108419,2.23662321,135.51,135.45,28.07631715]
[1767855108832,2.23662321,135.51,135.45,25.83969394]
[1767855109116,2.36788815,135.52,135.46,2.23662321]
[1767855109321,9.71510034,135.53,135.47,2.23662321]
[1767855109548,0.1,135.53,135.48,0.69545024]
[1767855109854,0.1,135.53,135.49,0.66834138]
[1767855110049,0.1,135.53,135.49,0.64052045]
[1767855110622,9.71510353,135.53,135.48,2.23662321]
[1767855111135,0.1,135.53,135.49,2.23662321]
[1767855111339,0.1,135.53,135.49,9.61685938]
[1767855111641,0.1,135.53,135.49,7.38023617]
[1767855112150,0.1,135.53,135.5,0.69545024]
[1767855112453,0.1,135.53,135.5,0.6687981]
[1767855114846,7.47863325,135.53,135.5,0.64185233]
[1767855115049,9.71525646,135.53,135.5,0.64185233]
[1767855115546,0.20438209,135.52,135.46,7.3818108]
[1767855115752,2.23662321,135.51,135.46,20.8618108]
[1767855116355,0.20438209,135.52,135.46,20.8618108]
[1767855116722,2.23662321,135.51,135.46,23.09843401]
[1767855116948,9.82025077,135.52,135.47,0.69545024]
[1767855117453,0.1,135.53,135.49,0.69545024]
[1767855117749,2.5410053,135.53,135.49,0.69545024]
[1767855117947,0.30438209,135.53,135.49,0.69545024]
[1767855118147,2.5410053,135.53,135.49,0.69545024]
[1767855118347,0.1,135.53,135.49,0.69545024]
[1767855119341,0.1,135.53,135.5,0.69545024]
[1767855119545,0.1,135.53,135.5,0.66814684]
[1767855119932,0.1,135.53,135.5,0.64041568]
[1767855120335,0.1,135.53,135.5,0.61277817]
[1767855121619,0.1,135.53,135.5,7.9928371]
[1767855121848,0.1,135.53,135.49,2.23662321]
[1767855122055,0.1,135.53,135.48,2.23662321]
[1767855122353,0.1,135.53,135.5,0.68686112]
[1767855122556,0.1,135.53,135.5,0.65375973]
[1767855123048,3.03639481,135.53,135.5,0.65375973]
[1767855123245,3.03639481,135.53,135.47,23.09811036]
[1767855123449,0.32168234,135.52,135.47,20.86148715]
[1767855123955,7.47849866,135.53,135.48,7.38107553]
[1767855124258,10.0305923,135.53,135.48,7.38107553]
[1767855124460,10.0305923,135.53,135.49,0.70164318]
[1767855125558,2.65209364,135.53,135.49,0.70164318]
[1767855125860,10.03066736,135.53,135.49,0.70164318]
[1767855126249,2.93876371,135.52,135.48,0.70164318]
[1767855128363,10.31776595,135.52,135.48,0.70164318]
[1767855128865,2.93876371,135.52,135.48,8.0827982]
[1767855129154,2.5597501,135.49,135.45,8.0843164]
[1767855129364,2.23662321,135.49,135.45,8.0843164]
[1767855129582,0.69831246,135.45,135.41,0.70164318]
[1767855129861,2.23662321,135.43,135.41,0.70164318]
[1767855130039,2.23662321,135.44,135.41,0.70164318]
[1767855130358,2.23662321,135.42,135.39,0.70164318]
[1767855130572,2.23662321,135.4,135.37,0.70164318]
[1767855130854,2.23662321,135.41,135.37,0.70164318]
[1767855131436,2.23662321,135.4,135.37,0.70164318]
[1767855131848,2.23662321,135.41,135.37,0.70164318]
[1767855133050,7.70424184,135.42,135.38,0.67422588]
[1767855133355,9.94086505,135.42,135.38,0.67422588]
[1767855133954,2.55596034,135.42,135.38,0.67422588]
[1767855135953,0.31933713,135.42,135.38,0.67422588]
[1767855136152,2.55596034,135.42,135.38,0.67422588]
[1767855136347,2.23662321,135.41,135.38,0.67422588]
[1767855136550,2.23662321,135.41,135.36,2.23662321]
[1767855136551,0.34261356,135.4,135.36,8.08916931]
[1767855136755,2.57923677,135.4,135.36,8.08916931]
[1767855137146,2.23662321,135.4,135.37,0.70164318]
[1767855137859,2.94266946,135.41,135.37,0.70164318]
[1767855139850,8.08999298,135.43,135.38,0.70164318]
[1767855140051,10.32661619,135.43,135.38,0.70164318]
[1767855140460,0.34261356,135.42,135.38,0.70164318]
[1767855141746,2.57923677,135.42,135.38,0.70164318]
[1767855141946,10.32661619,135.43,135.39,0.70164318]
[1767855142158,9.9631835,135.43,135.39,0.70164318]
[1767855142367,7.72656029,135.43,135.39,0.70164318]
[1767855142663,9.9631835,135.43,135.39,0.70164318]
[1767855144259,9.9631835,135.43,135.35,0.90164318]
[1767855144260,0.34973793,135.39,135.35,0.90164318]
[1767855144462,2.23662321,135.36,135.35,0.2]
[1767855144653,3.49803575,135.36,135.35,0.2]
[1767855144854,3.49803575,135.36,135.35,0.17274976]
[1767855145057,4.204082,135.38,135.35,0.17274976]
[1767855145262,3.49803575,135.37,135.35,0.17274976]
[1767855145763,4.204082,135.38,135.35,0.17274976]
[1767855146469,11.59107856,135.38,135.35,0.17274976]
[1767855147148,10.88432029,135.39,135.35,0.87439294]
[1767855147352,11.22693385,135.39,135.35,0.87439294]
[1767855147846,11.22650061,135.4,135.35,4.37242869]
[1767855148240,11.22650061,135.4,135.35,11.76067699]
[1767855148643,11.22650061,135.4,135.36,0.70164318]
[1767855149650,7.72846486,135.4,135.36,4.19967893]
[1767855150050,7.72846486,135.4,135.36,0.70164318]
[1767855150265,11.22650061,135.4,135.36,0.70164318]
[1767855151346,0.34261356,135.4,135.36,4.19967893]
[1767855151758,11.22583434,135.41,135.37,0.70164318]
[1767855151956,0.70241193,135.4,135.35,0.17274976]
[1767855152157,4.18595601,135.36,135.32,0.66338413]
[1767855152366,0.97558348,135.38,135.31,0.66338413]
[1767855152669,3.49803575,135.37,135.32,0.66338413]
[1767855152857,3.49803575,135.36,135.32,0.66338413]
[1767855153055,3.68926491,135.36,135.32,0.66338413]
[1767855153559,7.57905734,135.36,135.32,0.66338413]
[1767855153761,11.07709309,135.36,135.32,0.66338413]
[1767855155070,11.07142621,135.37,135.32,0.66338413]
[1767855157267,7.38716111,135.37,135.33,4.16141988]
[1767855157573,11.57140689,135.37,135.33,0.66338413]
[1767855158473,7.38716111,135.37,135.34,0.66338413]
[1767855158669,25.05539872,135.39,135.34,4.11316161]
[1767855158875,21.55736297,135.39,135.34,3.49803575]
[1767855159078,25.05539872,135.39,135.34,3.49803575]
[1767855159768,3.73204079,135.38,135.33,3.49803575]
[1767855159968,0.23400504,135.38,135.33,10.88730135]
[1767855160574,0.23400504,135.38,135.34,0.66338413]
[1767855161570,7.62065158,135.38,135.34,0.66338413]
[1767855162475,11.11868733,135.38,135.34,0.66338413]
[1767855163259,0.68668778,135.37,135.33,0.66338413]
[1767855163455,0.68668778,135.36,135.31,0.66338413]
[1767855163659,4.18024197,135.34,135.29,0.66338413]
[1767855163874,4.18024197,135.34,135.3,0.66338413]
[1767855164071,0.23853187,135.35,135.34,0.66338413]
[1767855164379,0.23853187,135.35,135.34,0.61512897]
[1767855164583,0.23853187,135.35,135.34,0.58827419]
[1767855164969,0.23853187,135.35,135.34,0.561217]
[1767855165356,7.38730922,135.37,135.34,0.53420282]
[1767855166556,11.57604532,135.38,135.34,0.53420282]
[1767855166761,7.38674923,135.38,135.35,3.49803575]
[1767855167152,0.68473857,135.37,135.35,3.49803575]
[1767855167359,7.38674923,135.38,135.35,0.66338413]
[1767855168257,11.57559782,135.39,135.35,0.66338413]
[1767855169066,7.38630173,135.39,135.36,0.66338413]
[1767855172183,11.57505309,135.4,135.36,0.66338413]
[1767855173090,3.85993028,135.39,135.34,8.05188296]
[1767855173396,0.68796669,135.38,135.34,8.05188296]
[1767855173571,0.68796669,135.38,135.35,0.66338413]
[1767855173771,11.57554623,135.39,135.35,0.66338413]
[1767855174496,3.49803575,135.38,135.35,0.66338413]
[1767855174882,8.07751048,135.39,135.35,0.66338413]
[1767855174883,11.57554623,135.39,135.35,0.66338413]
[1767855175780,4.18600244,135.37,135.33,0.66338413]
[1767855176092,3.49803575,135.37,135.33,0.66338413]
[1767855176497,0.68796669,135.36,135.32,16.97803575]
[1767855176694,0.68796669,135.36,135.32,17.64141988]
[1767855176896,0.68796669,135.36,135.32,25.03110341]
[1767855177194,7.38735604,135.37,135.33,0.66338413]
[1767855177393,8.07532273,135.37,135.33,0.66338413]
[1767855177595,0.36515525,135.36,135.32,11.55110341]
[1767855178091,0.36515525,135.36,135.32,4.16141988]
[1767855178795,0.36515525,135.36,135.33,0.66338413]
[1767855178999,11.57665213,135.37,135.33,0.66338413]
[1767855180195,0.36189453,135.36,135.32,0.66338413]
[1767855181274,11.57665213,135.37,135.33,0.66338413]
[1767855181695,8.07861638,135.37,135.33,0.66338413]
[1767855182299,11.57665213,135.37,135.33,0.66338413]
[1767855182601,3.49803575,135.38,135.34,0.67082463]
[1767855182776,25.0755822,135.39,135.34,0.67082463]
[1767855182976,18.46458392,135.4,135.35,0.67082463]
[1767855182977,8.0971428,135.4,135.35,0.67082463]
[1767855183176,0.68504978,135.37,135.33,4.19846329]
[1767855183376,0.36804299,135.36,135.32,0.70042754]
[1767855183798,0.36804299,135.36,135.31,11.58866991]
[1767855185894,10.88545371,135.37,135.32,0.70042754]
[1767855186207,24.73287891,135.38,135.34,0.70042754]
[1767855186405,21.23484316,135.38,135.34,0.70042754]
[1767855186708,0.68504978,135.42,135.38,0.70042754]
[1767855186889,0.68504978,135.42,135.37,4.19846329]
[1767855187202,0.68504978,135.42,135.38,3.49803575]
[1767855187502,0.68187971,135.42,135.37,4.19846329]
[1767855187708,0.68187971,135.42,135.38,0.70042754]
[1767855188592,0.68187971,135.42,135.38,4.19846329]
[1767855188788,0.67877272,135.4,135.36,0.70042754]
[1767855189385,10.88328408,135.41,135.36,0.70042754]
[1767855189697,0.68187971,135.43,135.39,0.70042754]
[1767855190013,5.60987836,135.43,135.39,0.70042754]
[1767855192409,7.383011,135.45,135.41,0.70042754]
[1767855192710,4.92992153,135.44,135.41,0.64913472]
[1767855194412,4.92992153,135.44,135.34,25.1513267]
[1767855194413,4.17178424,135.43,135.34,25.1513267]
[1767855194610,12.31330783,135.44,135.34,25.1513267]
[1767855194611,3.49803575,135.4,135.36,0.70042754]
[1767855194821,3.49803575,135.39,135.35,0.70042754]
[1767855195816,10.88411996,135.39,135.35,0.70042754]
[1767855195994,3.9328249,135.38,135.33,21.56953837]
[1767855196316,0.43478915,135.38,135.34,0.70042754]
[1767855196528,10.88411996,135.39,135.34,0.70042754]
[1767855198411,3.91949428,135.37,135.33,13.48]
[1767855198624,3.49803575,135.36,135.32,0.70042754]
[1767855199194,3.49803575,135.35,135.32,0.70042754]
[1767855200008,0.67977822,135.36,135.32,0.70042754]
[1767855200212,4.17781397,135.36,135.32,0.70042754]
[1767855200415,11.56604682,135.36,135.32,0.70042754]
[1767855200607,3.92207748,135.35,135.31,0.70042754]
[1767855200804,3.49803575,135.34,135.31,0.70042754]
[1767855201120,3.46803576,135.34,135.31,0.70042754]
[1767855201301,0.42404173,135.35,135.31,0.70042754]
[1767855201502,3.49803575,135.34,135.31,0.70042754]
[1767855202699,11.56409285,135.34,135.29,0.70042754]
[1767855203603,8.0660571,135.34,135.3,0.70042754]
[1767855204616,19.43387178,135.38,135.32,0.70042754]
[1767855204921,4.91948522,135.37,135.33,0.70042754]
[1767855205215,8.41752097,135.37,135.33,0.70042754]
[1767855205526,4.91948522,135.36,135.33,0.70042754]
[1767855206723,2.66001919,135.37,135.33,0.70042754]
[1767855206912,7.387936,135.36,135.33,0.70042754]
[1767855208304,7.387936,135.36,135.31,2.23856066]
[1767855208305,2.23856066,135.35,135.31,0.70042754]
[1767855208627,2.66513418,135.33,135.29,0.70042754]
[1767855208808,2.23856066,135.32,135.29,0.70042754]
[1767855209003,2.20856067,135.32,135.29,0.70042754]
[1767855209210,2.66513418,135.33,135.29,0.70042754]
[1767855210216,10.05491162,135.33,135.29,0.70042754]
[1767855211608,2.91327504,135.32,135.27,14.20042754]
[1767855211929,2.91327504,135.32,135.28,0.70042754]
[1767855212325,9.62868484,135.32,135.28,0.70042754]
[1767855213005,10.06306407,135.32,135.28,0.70042754]
[1767855213212,0.4367053,135.3,135.26,0.71465866]
[1767855213532,2.61526598,135.3,135.26,0.71465866]
[1767855214043,0.37670532,135.3,135.26,0.71465866]
[1767855214235,2.5228838,135.31,135.26,0.71465866]
[1767855214820,9.91378,135.31,135.26,0.71465866]
[1767855215426,10.5831163,135.31,135.26,0.71465866]
[1767855215930,7.3908962,135.31,135.27,0.71465866]
[1767855216122,10.29799135,135.32,135.27,0.71465866]
[1767855216319,7.39009439,135.32,135.28,0.71465866]
[1767855217012,7.70567366,135.32,135.28,0.71465866]
[1767855218234,9.62805372,135.33,135.29,0.71465866]
[1767855219328,2.90495339,135.32,135.27,0.71465866]
[1767855220035,10.29739002,135.33,135.28,0.71465866]
[1767855220535,0.66639273,135.31,135.27,0.71465866]
[1767855220712,2.61353991,135.32,135.27,0.71465866]
[1767855221116,0.66639273,135.31,135.27,10.34558081]
[1767855221318,0.6693363,135.32,135.28,0.71465866]
[1767855222620,9.62810071,135.33,135.28,0.71465866]
[1767855222820,10.29743701,135.33,135.28,0.71465866]
[1767855223030,8.05887635,135.33,135.29,0.71465866]
[1767855223329,9.6275734,135.34,135.29,0.71465866]
[1767855223831,0.6693363,135.27,135.19,7.39659393]
[1767855224037,2.90789696,135.25,135.19,9.63515459]
[1767855224339,2.90789696,135.29,135.23,2.23856066]
[1767855224840,2.90789696,135.29,135.24,13.5]
[1767855225229,2.23856066,135.26,135.2,2.23856066]
[1767855225538,2.23856066,135.25,135.21,13.5]
[1767855225943,2.23856066,135.25,135.21,14.21465866]
[1767855226320,2.23856066,135.25,135.22,0.71465866]
[1767855226519,2.20856067,135.25,135.22,0.71465866]
[1767855227041,2.90789696,135.26,135.22,0.71465866]
[1767855227231,2.23856066,135.26,135.23,0.71465866]
[1767855229144,9.63194242,135.26,135.23,0.71465866]
[1767855232754,9.13194242,135.26,135.23,0.71465866]
[1767855233242,0.6693363,135.25,135.21,21.61032728]
[1767855233952,0.6693363,135.25,135.21,23.84888794]
[1767855235428,0.6693363,135.25,135.21,21.61032728]
[1767855235629,10.30070657,135.27,135.22,0.71465866]
[1767855235928,0.6693363,135.27,135.23,0.71465866]
[1767855237150,0.6693363,135.27,135.24,0.71465866]
[1767855237728,8.06090098,135.29,135.25,14.21465866]
[1767855237950,0.6693363,135.29,135.25,14.21465866]
[1767855238662,8.0608709,135.29,135.25,13.5]
[1767855238830,0.6693363,135.28,135.25,13.5]
[1767855239438,8.0608709,135.29,135.25,14.21465866]
[1767855239650,7.3915346,135.29,135.26,0.71465866]
[1767855239851,10.29925566,135.3,135.26,0.71465866]
[1767855240051,9.62991936,135.3,135.26,0.71465866]
[1767855240756,9.62991936,135.3,135.24,7.39400403]
[1767855240757,0.6693363,135.28,135.24,7.39400403]
[1767855240960,0.6693363,135.28,135.26,12.40657443]
[1767855241762,2.23856066,135.27,135.22,0.71465866]
[1767855242055,2.23856066,135.26,135.23,13.5]
[1767855242450,25.8723762,135.28,135.23,13.5]
[1767855242760,25.8723762,135.28,135.22,0.66319158]
[1767855242761,2.23856066,135.26,135.22,0.66319158]
[1767855242939,2.23856066,135.26,135.23,14.16319158]
[1767855243645,2.23856066,135.26,135.23,0.66319158]
[1767855243855,9.63187889,135.26,135.23,0.66319158]
[1767855244067,9.63187889,135.26,135.23,14.16319158]
[1767855244247,9.63187889,135.26,135.21,0.67406808]
[1767855244442,9.63187889,135.26,135.2,9.63478339]
[1767855244443,9.63187889,135.26,135.2,7.39622273]
[1767855244641,9.63187889,135.26,135.21,13.5]
[1767855245439,9.63187889,135.26,135.21,14.17406808]
[1767855245854,0.099,135.25,135.19,13.5]
[1767855246152,2.6218838,135.25,135.19,13.5]
[1767855246349,2.6218838,135.25,135.19,15.73856066]
[1767855246537,2.6218838,135.25,135.19,13.5]
[1767855246538,2.23856066,135.24,135.19,13.5]
[1767855246738,2.23856066,135.22,135.16,2.23856066]
[1767855246958,2.23856066,135.22,135.17,13.5]
[1767855247158,2.23856066,135.22,135.16,2.23856066]
[1767855247358,2.23856066,135.22,135.17,13.5]
[1767855247750,9.6344199,135.22,135.18,0.67406808]
[1767855248147,10.29710105,135.22,135.18,0.67406808]
[1767855248455,0.1157419,135.19,135.14,2.91262874]
[1767855248634,2.33756066,135.2,135.16,0.67406808]
[1767855249074,2.23856066,135.2,135.16,0.67406808]
[1767855249273,2.5228838,135.21,135.16,0.67406808]